bitfinex-derivatives/quotes_BTCF0:USTF0_20250922
["timestamp","ask_amount","ask_price","bid_price","bid_amount"]
[1758511687338,0.08709745,114480.0,114470.0,1.13666313]
[1758511688238,0.08709745,114480.0,114470.0,1.21512898]
[1758511689548,0.08709745,114480.0,114470.0,1.21508898]
[1758511689858,0.10971745,114480.0,114470.0,0.34122313]
[1758511690152,0.10971745,114480.0,114470.0,0.9190776]
[1758511690353,0.10971745,114480.0,114470.0,1.13662313]
[1758511698357,0.10971745,114480.0,114470.0,1.21508898]
[1758511698956,0.10971745,114480.0,114470.0,1.13662313]
[1758511699452,0.10971745,114480.0,114470.0,1.21508898]
[1758511700355,0.08709745,114480.0,114470.0,1.21508898]
[1758511709260,0.0001,114490.0,114480.0,0.1223301]
[1758511709467,0.0001,114500.0,114490.0,0.1223224]
[1758511709658,0.03886929,114510.0,114500.0,0.1223148]
[1758511709859,0.02121,114520.0,114510.0,0.1223072]
[1758511710059,0.18387195,114530.0,114520.0,0.0872596]
[1758511710265,0.145,114530.0,114520.0,0.33984513]
[1758511710464,0.0349,114540.0,114530.0,0.122292]
[1758511710760,0.02111,114540.0,114530.0,0.33983753]
[1758511710961,0.04331047,114540.0,114530.0,0.109502]
[1758511711162,0.04291047,114540.0,114530.0,0.109502]
[1758511711465,0.04331047,114540.0,114530.0,0.109502]
[1758511712363,0.04931047,114540.0,114530.0,0.109502]
[1758511713367,0.11835237,114540.0,114530.0,0.109502]
[1758511713569,0.12835237,114540.0,114530.0,0.109502]
[1758511714363,0.11546237,114540.0,114530.0,0.35986908]
[1758511714769,0.12835237,114540.0,114530.0,0.12953355]
[1758511715069,0.11546237,114540.0,114530.0,0.14232355]
[1758511715369,0.11546237,114540.0,114530.0,0.35986908]
[1758511718265,0.26046237,114540.0,114530.0,0.35986908]
[1758511720076,0.34770667,114540.0,114530.0,0.35986908]
[1758511721765,0.36059667,114540.0,114530.0,0.14232355]
[1758511722076,0.34770667,114540.0,114530.0,0.35986908]
[1758511722474,0.34770667,114540.0,114530.0,0.14232355]
[1758511723878,0.34770667,114540.0,114530.0,0.122292]
[1758511724669,0.34770667,114540.0,114530.0,0.33967711]
[1758511724978,0.56509178,114540.0,114530.0,0.33967711]
[1758511727378,0.58277995,114540.0,114530.0,0.33967711]
[1758511727969,0.56509178,114540.0,114530.0,0.33967711]
[1758511728174,0.60498875,114540.0,114530.0,0.33967711]
[1758511730476,0.60498214,114540.0,114530.0,0.33967711]
[1758511731478,0.61787214,114540.0,114530.0,0.33967711]
[1758511731676,0.61789802,114540.0,114530.0,0.122292]
[1758511731980,0.61789802,114540.0,114530.0,0.33967711]
[1758511738285,0.61789802,114540.0,114530.0,0.32688711]
[1758511742686,0.61789802,114540.0,114530.0,0.33975711]
[1758511743083,0.40096038,114540.0,114530.0,0.33975711]
[1758511743388,0.61834549,114540.0,114530.0,0.33975711]
[1758511743687,0.38807038,114540.0,114530.0,0.33975711]
[1758511743872,0.60545549,114540.0,114530.0,0.33975711]
[1758511744078,0.58754685,114540.0,114530.0,0.33975711]
[1758511744878,0.38786957,114540.0,114530.0,0.33975711]
[1758511745080,0.60525468,114540.0,114530.0,0.33975711]
[1758511745578,0.38786957,114540.0,114530.0,0.33975711]
[1758511745778,0.60525468,114540.0,114530.0,0.33975711]
[1758511746480,0.38786957,114540.0,114530.0,0.33975711]
[1758511746674,0.38782781,114540.0,114530.0,0.33975711]
[1758511747686,0.38788429,114540.0,114530.0,0.33975711]
[1758511747988,0.37016174,114540.0,114530.0,0.33975711]
[1758511748288,0.38765123,114540.0,114530.0,0.33975711]
[1758511749486,0.38765123,114540.0,114530.0,0.36029373]
[1758511749784,0.60503634,114540.0,114530.0,0.36029373]
[1758511750274,0.61783634,114540.0,114530.0,0.36029373]
[1758511750478,0.38765123,114540.0,114530.0,0.36029373]
[1758511750679,0.61783634,114540.0,114530.0,0.36029373]
[1758511752383,0.61783634,114540.0,114530.0,0.34742373]
[1758511757995,0.61783634,114540.0,114530.0,0.26017173]
[1758511758396,0.83522145,114540.0,114530.0,0.04278662]
[1758511759995,1.62966145,114540.0,114530.0,0.04278662]
[1758511761995,1.87966145,114540.0,114530.0,0.02053662]
[1758511762299,0.122323,114530.0,114520.0,0.1090102]
[1758511762498,0.36216318,114530.0,114520.0,0.32639531]
[1758511762798,1.15656318,114530.0,114520.0,0.32639531]
[1758511764701,1.16156318,114530.0,114520.0,0.32639531]
[1758511764904,0.36716318,114530.0,114520.0,0.32639531]
[1758511765204,1.17056318,114530.0,114520.0,0.32639531]
[1758511765590,0.14597807,114530.0,114520.0,0.33983531]
[1758511765801,0.36336318,114530.0,114520.0,0.33983531]
[1758511766699,0.37673318,114530.0,114520.0,0.33983531]
[1758511766903,0.15934807,114530.0,114520.0,0.33983531]
[1758511767104,0.37673318,114530.0,114520.0,0.33983531]
[1758511768502,0.35427811,114530.0,114520.0,0.33983531]
[1758511769002,0.49927811,114530.0,114520.0,0.33983531]
[1758511771211,0.281893,114530.0,114520.0,0.33983531]
[1758511771406,0.49927811,114530.0,114520.0,0.33983531]
[1758511771711,0.52185082,114530.0,114520.0,0.32639531]
[1758511772814,0.52185082,114530.0,114520.0,0.32639601]
[1758511773513,0.52185082,114530.0,114520.0,0.02175]
[1758511773707,0.52185082,114530.0,114520.0,0.23913511]
[1758511774813,0.52185082,114530.0,114520.0,0.32639601]
[1758511775007,1.31613082,114530.0,114520.0,0.32639601]
[1758511778509,0.52185082,114530.0,114520.0,0.32639601]
[1758511778812,1.31609082,114530.0,114520.0,0.32639601]
[1758511779910,1.31609082,114530.0,114520.0,0.23913511]
[1758511780817,0.1231709,114520.0,114510.0,0.1102638]
[1758511781017,0.34055601,114520.0,114510.0,0.32764891]
[1758511781210,0.36314363,114520.0,114510.0,0.32764891]
[1758511781607,0.36314363,114520.0,114510.0,0.34108891]
[1758511782113,0.36714363,114520.0,114510.0,0.34108891]
[1758511783016,0.37314363,114520.0,114510.0,0.34108891]
[1758511783207,0.15575852,114520.0,114510.0,0.34108891]
[1758511783408,0.37314363,114520.0,114510.0,0.34108891]
[1758511784619,0.35055601,114520.0,114510.0,0.34108891]
[1758511785103,0.03254,114520.0,114510.0,0.34108891]
[1758511785311,0.24992511,114520.0,114510.0,0.34108891]
[1758511785504,0.33718581,114520.0,114510.0,0.34108891]
[1758511786513,0.1198007,114520.0,114510.0,0.34114724]
[1758511787018,0.119801,114520.0,114510.0,0.34114724]
[1758511789021,0.264801,114520.0,114510.0,0.34114724]
[1758511791620,0.17754,114520.0,114510.0,0.34114724]
[1758511794321,0.03254,114520.0,114510.0,0.34114724]
[1758511794621,0.0321,114520.0,114510.0,0.34114724]
[1758511795021,0.0325,114520.0,114510.0,0.34114724]
[1758511796723,0.0104,114520.0,114510.0,0.34114724]
[1758511797118,0.0104,114520.0,114510.0,1.60267068]
[1758511797524,0.01,114520.0,114510.0,1.60267068]
[1758511797824,0.0104,114520.0,114510.0,1.60267068]
[1758511800220,0.0001,114530.0,114520.0,0.1237111]
[1758511800422,0.1185794,114540.0,114530.0,0.1237034]
[1758511800724,0.1184794,114540.0,114530.0,0.4037601]
[1758511802018,0.1184794,114540.0,114530.0,0.18631666]
[1758511802219,0.1184794,114540.0,114530.0,0.4037601]
[1758511803127,0.1214794,114540.0,114530.0,0.4037601]
[1758511803626,0.1244794,114540.0,114530.0,0.4037601]
[1758511803829,0.1244794,114540.0,114530.0,0.18631666]
[1758511804027,0.1244794,114540.0,114530.0,0.4037601]
[1758511804228,0.1244794,114540.0,114530.0,0.34114684]
[1758511805231,0.1381394,114540.0,114530.0,0.34114684]
[1758511805422,0.1244794,114540.0,114530.0,0.34114684]
[1758511806031,0.1236794,114540.0,114530.0,0.34114684]
[1758511806332,0.1240794,114540.0,114530.0,0.34114684]
[1758511807722,0.1240794,114540.0,114530.0,0.1237034]
[1758511808031,0.1240794,114540.0,114530.0,0.34114684]
[1758511810228,0.1240794,114540.0,114530.0,0.1237034]
[1758511810434,0.1240794,114540.0,114530.0,0.34114684]
[1758511811029,0.1236794,114540.0,114530.0,0.34114684]
[1758511811228,0.1240794,114540.0,114530.0,0.34114684]
[1758511812725,0.08435237,114540.0,114530.0,0.34114684]
[1758511813228,0.10719237,114540.0,114530.0,0.1237034]
[1758511813433,0.10719237,114540.0,114530.0,0.34114684]
[1758511813935,0.11991237,114540.0,114530.0,0.1237034]
[1758511815629,0.33735581,114540.0,114530.0,0.1099934]
[1758511816738,0.42460201,114540.0,114530.0,0.1099934]
[1758511817637,0.42460201,114540.0,114530.0,0.1099938]
[1758511818332,0.42460201,114540.0,114530.0,0.02274]
[1758511818333,0.69662178,114540.0,114530.0,0.02274]
[1758511818537,0.71405247,114540.0,114530.0,0.02274]
[1758511818835,0.0872539,114530.0,114520.0,0.12852578]
[1758511819133,0.34025734,114530.0,114520.0,0.12852578]
[1758511820230,0.34125734,114530.0,114520.0,0.12852578]
[1758511820537,0.1238139,114530.0,114520.0,0.12852578]
[1758511821737,0.2688139,114530.0,114520.0,0.12852578]
[1758511822834,0.48625734,114530.0,114520.0,0.12852578]
[1758511823539,0.2688139,114530.0,114520.0,0.12852578]
[1758511824541,0.18156,114530.0,114520.0,0.12852578]
[1758511824741,0.2688139,114530.0,114520.0,0.12852578]
[1758511827033,0.2688139,114530.0,114520.0,0.14121578]
[1758511827243,0.2560939,114530.0,114520.0,0.14121578]
[1758511829037,0.2696939,114530.0,114520.0,0.12852578]
[1758511830638,0.48713734,114530.0,114520.0,0.12852578]
[1758511831438,0.48713734,114530.0,114520.0,0.1084569]
[1758511831741,0.48713734,114530.0,114520.0,0.1084615]
[1758511832241,0.1228715,114520.0,114510.0,0.1104842]
[1758511832442,0.35794009,114520.0,114510.0,0.1104842]
[1758511833137,0.14049665,114520.0,114510.0,0.1104842]
[1758511834546,0.14049665,114520.0,114510.0,0.1134842]
[1758511834943,0.1228715,114520.0,114510.0,0.1134842]
[1758511836442,0.1238715,114520.0,114510.0,0.1134842]
[1758511837246,0.1238715,114520.0,114510.0,0.1104842]
[1758511837838,0.34131494,114520.0,114510.0,0.1104842]
[1758511838742,0.59131494,114520.0,114510.0,0.02322]
[1758511839347,0.34131494,114520.0,114510.0,0.02322]
[1758511840750,0.34131494,114520.0,114510.0,0.1104891]
[1758511842347,0.48631494,114520.0,114510.0,0.1104891]
[1758511843550,0.48631494,114520.0,114510.0,0.0872691]
[1758511843746,0.48631494,114520.0,114510.0,0.1104891]
[1758511845953,0.48631494,114520.0,114510.0,0.02322]
[1758511846654,0.70386286,114520.0,114510.0,0.02322]
[1758511849759,0.2688715,114520.0,114510.0,0.02322]
[1758511849959,0.70386286,114520.0,114510.0,0.02322]
[1758511850360,0.70386286,114520.0,114510.0,0.1104892]
[1758511850556,0.2688715,114520.0,114510.0,0.1104892]
[1758511850755,0.70386286,114520.0,114510.0,0.1104892]
[1758511851461,0.70386286,114520.0,114510.0,0.02322]
[1758511851662,0.1228791,114510.0,114500.0,0.1104905]
[1758511851960,0.34037478,114510.0,114500.0,0.32798618]
[1758511852156,0.48537478,114510.0,114500.0,0.32798618]
[1758511852362,0.70287046,114510.0,114500.0,0.02322]
[1758511852662,0.48537478,114510.0,114500.0,0.02322]
[1758511852859,1.27897478,114510.0,114500.0,0.02322]
[1758511853363,0.1198868,114500.0,114490.0,0.1105003]
[1758511853555,0.35472231,114500.0,114490.0,0.1105003]
[1758511855051,0.35572231,114500.0,114490.0,0.1105003]
[1758511855256,0.35572231,114500.0,114490.0,0.32799598]
[1758511856364,0.35772231,114500.0,114490.0,0.32799598]
[1758511857065,0.42637651,114500.0,114490.0,0.32799598]
[1758511860369,0.42637651,114500.0,114490.0,0.1105044]
[1758511860662,0.64387219,114500.0,114490.0,0.1105044]
[1758511861668,1.43743219,114500.0,114490.0,0.1105044]
[1758511862368,1.43743219,114500.0,114490.0,0.32800008]
[1758511862669,0.42637651,114500.0,114490.0,0.32800008]
[1758511865769,0.42637651,114500.0,114490.0,0.1105044]
[1758511865975,0.64387219,114500.0,114490.0,0.1105044]
[1758511866369,0.64387219,114500.0,114490.0,0.02322]
[1758511866566,0.64387219,114500.0,114490.0,0.1105044]
[1758511866766,0.64387219,114500.0,114490.0,0.02322]
[1758511867474,0.1221944,114490.0,114480.0,0.1092969]
[1758511867773,0.1221944,114490.0,114480.0,0.32679258]
[1758511867774,0.33969008,114490.0,114480.0,0.32679258]
[1758511868369,0.33969008,114490.0,114480.0,0.1092969]
[1758511868568,0.33969008,114490.0,114480.0,0.32679258]
[1758511869076,0.33969008,114490.0,114480.0,0.1092969]
[1758511869375,0.33969008,114490.0,114480.0,0.32679258]
[1758511869967,0.33969008,114490.0,114480.0,0.32779258]
[1758511871080,0.33969008,114490.0,114480.0,0.33994258]
[1758511871278,0.34169008,114490.0,114480.0,0.33994258]
[1758511871978,0.25440568,114490.0,114480.0,0.33994258]
[1758511873579,0.25540568,114490.0,114480.0,0.33994258]
[1758511876077,0.25540568,114490.0,114480.0,0.1224469]
[1758511876280,0.25540568,114490.0,114480.0,0.33994258]
[1758511877082,0.34269008,114490.0,114480.0,0.1224469]
[1758511877274,0.34269008,114490.0,114480.0,0.33994258]
[1758511879481,0.25540568,114490.0,114480.0,0.33994258]
[1758511879782,0.25540568,114490.0,114480.0,0.1224469]
[1758511879980,0.25540568,114490.0,114480.0,0.33994258]
[1758511880280,0.1251944,114490.0,114480.0,0.1092969]
[1758511880479,0.34269008,114490.0,114480.0,0.33994258]
[1758511880874,0.34269008,114490.0,114480.0,0.32679258]
[1758511882184,0.34269008,114490.0,114480.0,0.1224469]
[1758511882383,0.34269008,114490.0,114480.0,0.33994258]
[1758511882578,0.03791,114490.0,114480.0,0.33994258]
[1758511882882,0.25540568,114490.0,114480.0,0.33994258]
[1758511889487,0.03791,114490.0,114480.0,0.33994258]
[1758511889781,0.25540568,114490.0,114480.0,0.33994258]
[1758511891881,0.02435,114490.0,114480.0,0.33994258]
[1758511892081,0.24184568,114490.0,114480.0,0.33994258]
[1758511892484,0.003,114490.0,114480.0,0.55743826]
[1758511893081,0.0034,114490.0,114480.0,0.63578056]
[1758511895684,0.0034,114490.0,114480.0,1.10327624]
[1758511895890,0.0034,114490.0,114480.0,1.02493394]
[1758511896074,0.0034,114490.0,114480.0,1.10327624]
[1758511896279,0.003,114490.0,114480.0,1.10327624]
[1758511896480,0.0034,114490.0,114480.0,1.10327624]
[1758511896680,0.0014,114490.0,114480.0,1.10327624]
[1758511896881,0.0004,114490.0,114480.0,1.10827624]
[1758511897082,0.0004,114490.0,114480.0,1.10927624]
[1758511897485,0.0004,114490.0,114480.0,1.11227624]
[1758511898793,0.0004,114490.0,114480.0,1.11327624]
[1758511899293,0.0004,114490.0,114480.0,0.86327624]
[1758511899793,0.0004,114490.0,114480.0,0.89489615]
[1758511899984,0.08689403,114500.0,114490.0,0.1244444]
[1758511899985,0.08609403,114500.0,114490.0,0.1244444]
[1758511900186,0.08599403,114500.0,114490.0,1.43156732]
[1758511900590,0.08599403,114500.0,114490.0,1.68156732]
[1758511900887,0.0686542,114500.0,114490.0,1.70157561]
[1758511901093,0.0009,114510.0,114500.0,0.1244368]
[1758511901293,0.0008,114510.0,114500.0,0.55942816]
[1758511901994,0.01756131,114520.0,114510.0,0.1011191]
[1758511902196,0.01826131,114520.0,114510.0,1.13576478]
[1758511902494,0.01826131,114520.0,114510.0,0.34192478]
[1758511902690,0.04087131,114520.0,114510.0,0.34192478]
[1758511902890,0.04087131,114520.0,114510.0,1.13572478]
[1758511903395,0.04187131,114520.0,114510.0,1.13572478]
[1758511905099,0.04187131,114520.0,114510.0,0.34192478]
[1758511905395,0.04187131,114520.0,114510.0,1.13552478]
[1758511906100,0.01926131,114520.0,114510.0,1.13552478]
[1758511906492,0.16426131,114520.0,114510.0,1.13552478]
[1758511906698,0.01926131,114520.0,114510.0,1.13552478]
[1758511906899,0.01926131,114520.0,114510.0,1.35302046]
[1758511907394,0.01846131,114520.0,114510.0,1.60302046]
[1758511907591,0.01886131,114520.0,114510.0,1.60306046]
[1758511908696,0.01886131,114520.0,114510.0,1.60282064]
[1758511909601,0.01886131,114520.0,114510.0,0.80918064]
[1758511909802,0.01886131,114520.0,114510.0,1.60278064]
[1758511910299,0.0014,114520.0,114510.0,0.80918064]
[1758511910601,0.0014,114520.0,114510.0,1.60278064]
[1758511910800,0.0014,114520.0,114510.0,1.60274064]
[1758511910997,0.0014,114520.0,114510.0,0.80918064]
[1758511911201,0.0014,114520.0,114510.0,1.60270064]
[1758511912299,0.0014,114520.0,114510.0,0.80918064]
[1758511912703,0.0014,114520.0,114510.0,1.60258064]
[1758511913108,0.0001,114530.0,114520.0,0.0872615]
[1758511913299,0.0785953,114540.0,114530.0,0.1244139]
[1758511913498,0.0776953,114540.0,114530.0,1.13514967]
[1758511913698,0.0004,114540.0,114530.0,1.13514967]
[1758511913900,0.0004,114540.0,114530.0,1.35252544]
[1758511914507,0.0004,114540.0,114530.0,1.13514967]
[1758511914708,0.00966366,114550.0,114540.0,0.1238463]
[1758511914903,0.00810566,114560.0,114550.0,0.1238387]
[1758511915097,0.03013566,114560.0,114550.0,0.34121447]
[1758511915403,0.09960067,114560.0,114550.0,0.34121447]
[1758511915610,0.02973566,114560.0,114550.0,1.13921447]
[1758511916419,0.04373566,114560.0,114550.0,1.13921447]
[1758511916622,0.04973566,114560.0,114550.0,1.13921447]
[1758511917118,0.05846607,114560.0,114550.0,0.1238387]
[1758511917325,0.05846607,114560.0,114550.0,1.13913447]
[1758511919317,0.05846607,114560.0,114550.0,0.34121447]
[1758511919822,0.05846607,114560.0,114550.0,1.13889447]
[1758511920214,0.12887763,114560.0,114550.0,1.13889447]
[1758511921025,0.12887763,114560.0,114550.0,0.9215187]
[1758511921323,0.21610873,114560.0,114550.0,0.34121447]
[1758511921522,0.12887763,114560.0,114550.0,0.9212787]
[1758511921723,0.12887763,114560.0,114550.0,1.13865447]
[1758511925316,0.12887763,114560.0,114550.0,0.9212787]
[1758511925517,0.12287763,114560.0,114550.0,1.13865447]
[1758511925717,0.12687763,114560.0,114550.0,1.13865447]
[1758511925926,0.12387763,114560.0,114550.0,1.13865447]
[1758511929423,0.12387763,114560.0,114550.0,0.34121447]
[1758511929622,0.12387763,114560.0,114550.0,1.13945447]
[1758511930227,0.12387763,114560.0,114550.0,1.13949447]
[1758511931734,0.12387763,114560.0,114550.0,0.9221187]
[1758511932033,0.12387763,114560.0,114550.0,1.13949447]
[1758511933837,0.12387763,114560.0,114550.0,1.13937447]
[1758511935838,0.21110873,114560.0,114550.0,0.34121447]
[1758511936041,0.71410175,114560.0,114550.0,0.1098987]
[1758511936431,0.39636488,114560.0,114550.0,0.1231187]
[1758511936636,0.12503488,114560.0,114550.0,0.34049447]
[1758511936939,0.10214763,114560.0,114550.0,0.34049447]
[1758511937139,0.12504616,114560.0,114550.0,0.34049447]
[1758511937533,0.14765616,114560.0,114550.0,0.34049447]
[1758511938341,0.12515763,114560.0,114550.0,0.34049447]
[1758511938942,0.10254763,114560.0,114550.0,0.34049447]
[1758511939142,0.12505856,114560.0,114550.0,0.34049447]
[1758511939839,0.14766856,114560.0,114550.0,0.34049447]
[1758511940241,0.12505856,114560.0,114550.0,0.34049447]
[1758511945946,0.14655856,114560.0,114550.0,0.34049447]
[1758511946144,0.09381722,114560.0,114550.0,0.34049447]
[1758511946537,0.09341722,114560.0,114550.0,0.34049447]
[1758511946739,0.09381722,114560.0,114550.0,0.34049447]
[1758511947147,0.09381722,114560.0,114550.0,0.1231187]
[1758511947347,0.09381722,114560.0,114550.0,0.34049447]
[1758511947545,0.09281722,114560.0,114550.0,0.34049447]
[1758511948053,0.08881722,114560.0,114550.0,0.34049447]
[1758511949246,0.08881722,114560.0,114550.0,1.14189447]
[1758511951451,0.59163299,114560.0,114550.0,0.1098986]
[1758511951746,0.62269876,114560.0,114550.0,0.02266]
[1758511951945,0.62269876,114560.0,114550.0,0.1098986]
[1758511952553,0.70992976,114560.0,114550.0,0.1098986]
[1758511952750,0.70992976,114560.0,114540.0,0.9028218]
[1758511952953,0.25281577,114550.0,114540.0,0.1235918]
[1758511953145,0.05767324,114550.0,114540.0,0.1235918]
[1758511953545,0.30767324,114550.0,114540.0,0.1096518]
[1758511953744,0.61228761,114550.0,114540.0,0.1096518]
[1758511954454,0.28544,114550.0,114540.0,0.1096518]
[1758511954748,0.29144,114550.0,114540.0,0.1096518]
[1758511955355,0.3786786,114550.0,114540.0,0.1096518]
[1758511955956,0.1226938,114530.0,114520.0,0.03626]
[1758511956155,0.34006957,114530.0,114520.0,0.1096715]
[1758511956454,0.34006957,114530.0,114520.0,0.02241]
[1758511956652,0.6120175,114530.0,114520.0,0.02241]
[1758511957246,0.6120175,114530.0,114510.0,0.1096744]
[1758511957247,0.1227015,114520.0,114510.0,0.1096744]
[1758511957447,0.34007727,114520.0,114510.0,0.1096744]
[1758511957663,0.33907727,114520.0,114510.0,0.02241]
[1758511957846,0.33607727,114520.0,114510.0,0.02241]
[1758511958351,0.58607727,114520.0,114510.0,0.02241]
[1758511958549,0.58607727,114520.0,114500.0,0.9111195]
[1758511958550,0.02944,114510.0,114500.0,0.9111195]
[1758511958854,0.24681577,114510.0,114500.0,0.9111195]
[1758511959350,0.24481577,114510.0,114500.0,0.9111195]
[1758511959554,0.02744,114510.0,114500.0,0.9111195]
[1758511959853,0.02744,114510.0,114500.0,0.9237295]
[1758511960250,0.02844,114510.0,114500.0,0.9237295]
[1758511960447,0.02844,114510.0,114500.0,1.14110527]
[1758511961456,0.03344,114510.0,114500.0,1.14110527]
[1758511961947,0.0275,114510.0,114500.0,1.14110527]
[1758511962147,0.07666572,114510.0,114500.0,1.41155459]
[1758511962354,0.006,114510.0,114500.0,1.41155459]
[1758511962552,0.0064,114510.0,114500.0,1.41155459]
[1758511963345,0.0054,114510.0,114500.0,1.41155459]
[1758511963549,0.01425109,114510.0,114500.0,1.41155459]
[1758511964451,0.03575109,114510.0,114500.0,0.94469882]
[1758511964649,0.03575109,114510.0,114500.0,1.16207459]
[1758511964947,0.03575109,114510.0,114500.0,1.16188179]
[1758511965262,0.35433596,114510.0,114500.0,0.04285932]
[1758511965760,0.04969109,114510.0,114500.0,0.14274602]
[1758511965950,0.04469109,114510.0,114500.0,0.14274602]
[1758511966150,0.35433596,114510.0,114500.0,0.04285932]
[1758511966350,0.13696019,114510.0,114500.0,0.13013602]
[1758511966556,0.20759798,114510.0,114500.0,0.13013602]
[1758511967152,0.12132888,114510.0,114500.0,0.13013602]
[1758511967461,0.10738888,114510.0,114500.0,0.14274602]
[1758511967760,0.10438888,114510.0,114500.0,0.36012179]
[1758511967959,0.10498888,114510.0,114500.0,0.36012179]
[1758511968150,0.10298888,114510.0,114500.0,0.36012179]
[1758511968351,0.11098888,114510.0,114500.0,0.36012179]
[1758511968658,0.11138888,114510.0,114500.0,0.36012179]
[1758511969455,0.10738888,114510.0,114500.0,0.36012179]
[1758511969653,0.10738888,114510.0,114500.0,0.14274602]
[1758511970655,0.10738888,114510.0,114500.0,0.36023393]
[1758511970961,0.32487679,114510.0,114500.0,0.36023393]
[1758511971759,0.12132888,114510.0,114500.0,0.36023393]
[1758511971953,0.12132888,114510.0,114500.0,1.16187393]
[1758511972154,0.33881679,114510.0,114500.0,1.16187393]
[1758511972355,0.33881679,114510.0,114500.0,1.14142461]
[1758511973263,0.33881679,114510.0,114500.0,0.33978461]
[1758511974056,0.33881679,114510.0,114500.0,0.1222967]
[1758511974258,0.33881679,114510.0,114500.0,0.1096867]
[1758511974463,0.33881679,114510.0,114500.0,0.32717461]
[1758511979463,0.33881679,114510.0,114500.0,0.34034461]
[1758511980068,0.12132888,114510.0,114500.0,0.55783252]
[1758511980278,0.12132888,114510.0,114500.0,0.34034461]
[1758511980883,0.10738888,114510.0,114500.0,0.55783252]
[1758511983281,0.10738888,114510.0,114500.0,0.1228567]
[1758511983585,0.33883679,114510.0,114500.0,1.12761461]
[1758511984385,0.33883679,114510.0,114500.0,0.9101267]
[1758511984588,0.33883679,114510.0,114500.0,1.12761461]
[1758511985285,0.33883679,114510.0,114500.0,1.1902786]
[1758511985885,0.33883679,114510.0,114500.0,1.12761461]
[1758511987288,0.12134888,114510.0,114500.0,1.12761461]
[1758511987487,0.33883679,114510.0,114500.0,1.12761461]
[1758511989492,0.8935938,114510.0,114490.0,0.19853662]
[1758511989692,0.47000582,114500.0,114490.0,0.92994663]
[1758511990192,0.47000582,114500.0,114490.0,0.12974663]
[1758511991085,0.25251791,114500.0,114490.0,0.12974663]
[1758511991893,0.25451791,114500.0,114490.0,0.34723454]
[1758511992700,0.25451791,114500.0,114490.0,0.12887407]
[1758511992996,0.25451791,114500.0,114490.0,0.34636198]
[1758511993391,0.34179461,114500.0,114490.0,0.34636198]
[1758511993590,0.34179461,114500.0,114490.0,0.12887407]
[1758511996994,0.55928252,114500.0,114490.0,0.12887407]
[1758511997293,0.34179461,114500.0,114490.0,0.12887407]
[1758511998591,0.36421196,114500.0,114490.0,0.12887407]
[1758511998990,0.36421196,114500.0,114490.0,0.34636198]
[1758511999695,0.14672405,114500.0,114490.0,0.34636198]
[1758511999889,0.36421196,114500.0,114490.0,0.34636198]
[1758512000293,0.36421196,114500.0,114490.0,0.12887407]
[1758512000897,0.58169987,114500.0,114490.0,0.12887407]
[1758512001695,0.58169802,114500.0,114490.0,0.12887407]
[1758512002093,0.1467222,114500.0,114490.0,0.14272407]
[1758512002294,0.36421011,114500.0,114490.0,0.36021198]
[1758512002597,0.27693341,114500.0,114490.0,0.36021198]
[1758512002898,0.36421011,114500.0,114490.0,0.36021198]
[1758512005600,0.1467222,114500.0,114490.0,0.36021198]
[1758512006301,0.1243067,114500.0,114490.0,0.36021198]
[1758512006492,0.34179461,114500.0,114490.0,0.36021198]
[1758512008201,0.1243067,114500.0,114490.0,0.36021198]
[1758512008404,0.34179461,114500.0,114490.0,0.36021198]
[1758512015308,0.34179461,114500.0,114490.0,0.14272407]
[1758512015507,0.34179461,114500.0,114490.0,0.36021198]
[1758512015805,0.34179461,114500.0,114490.0,0.14272707]
[1758512016108,0.55928252,114500.0,114490.0,0.14272707]
[1758512017107,0.55928252,114500.0,114490.0,0.12887707]
[1758512019907,0.55928252,114500.0,114490.0,0.04159277]
[1758512024614,0.1243067,114500.0,114490.0,0.04159277]
[1758512024916,0.55928252,114500.0,114490.0,0.12887707]
[1758512025109,0.34179461,114500.0,114490.0,0.12887707]
[1758512027504,0.32783461,114500.0,114490.0,0.36000498]
[1758512028316,0.32783461,114500.0,114490.0,0.34056221]
[1758512028517,0.32783461,114500.0,114490.0,0.25327791]
[1758512028711,0.32783461,114500.0,114490.0,0.34056221]
[1758512030506,0.32788581,114500.0,114490.0,0.1230743]
[1758512035118,0.02307,114500.0,114490.0,0.34061341]
[1758512035624,0.02307,114500.0,114490.0,0.1230743]
[1758512037222,0.002,114500.0,114490.0,0.34061341]
[1758512037811,0.002,114500.0,114490.0,0.59061341]
[1758512038226,0.0024,114500.0,114490.0,0.59061341]
[1758512040623,0.0024,114500.0,114490.0,1.38941341]
[1758512040824,0.0234,114500.0,114490.0,1.38921341]
[1758512041022,0.0234,114500.0,114490.0,1.38917341]
[1758512042319,0.25389911,114500.0,114490.0,0.1230743]
[1758512042520,0.34117561,114500.0,114490.0,0.1094343]
[1758512044229,0.35892877,114500.0,114490.0,0.02215]
[1758512044630,0.1212441,114490.0,114480.0,0.25752335]
[1758512044821,0.33878321,114490.0,114480.0,0.25752335]
[1758512045417,0.33878321,114490.0,114480.0,0.17023515]
[1758512045726,0.33878321,114490.0,114480.0,0.05717]
[1758512046118,0.33878321,114490.0,114480.0,0.06117]
[1758512047929,0.33878321,114490.0,114480.0,0.1704517]
[1758512048120,0.1212441,114490.0,114480.0,0.1704517]
[1758512048325,0.33878321,114490.0,114480.0,0.1832417]
[1758512050434,0.25149911,114490.0,114480.0,0.1832417]
[1758512050622,0.33878321,114490.0,114480.0,0.1832417]
[1758512051621,0.33878321,114490.0,114480.0,0.1704517]
[1758512052022,0.58878321,114490.0,114480.0,0.08316]
[1758512052214,0.58878321,114490.0,114480.0,0.06117]
[1758512052829,0.61113737,114490.0,114480.0,0.06117]
[1758512053227,0.58878321,114490.0,114480.0,0.06117]
[1758512054426,1.38778321,114490.0,114480.0,0.06117]
[1758512055227,1.38778321,114490.0,114480.0,0.08309]
[1758512056525,0.58878321,114490.0,114480.0,0.08309]
[1758512056729,1.38758321,114490.0,114480.0,0.08309]
[1758512061229,0.58878321,114490.0,114480.0,0.08309]
[1758512061531,1.38754321,114490.0,114480.0,0.08309]
[1758512062427,0.58878321,114490.0,114480.0,0.08309]
[1758512062635,1.53242321,114490.0,114480.0,0.08309]
[1758512064136,1.53442321,114490.0,114480.0,0.083]
[1758512065338,1.3168841,114490.0,114480.0,0.083]
[1758512065534,1.53442321,114490.0,114480.0,0.083]
[1758512065722,1.3168841,114490.0,114480.0,0.083]
[1758512065926,1.53418321,114490.0,114480.0,0.083]
[1758512067733,1.52096321,114490.0,114480.0,0.083]
[1758512067937,1.53418321,114490.0,114480.0,0.083]
[1758512069136,0.73578321,114490.0,114480.0,0.1702917]
[1758512069338,1.53418321,114490.0,114480.0,0.1702917]
[1758512069830,1.13902321,114490.0,114480.0,0.083]
[1758512071937,0.9214841,114490.0,114480.0,0.083]
[1758512072141,1.13902321,114490.0,114480.0,0.083]
[1758512072437,0.36312907,114490.0,114480.0,0.083]
[1758512072639,1.16112907,114490.0,114480.0,0.083]
[1758512073238,0.36312907,114490.0,114480.0,0.083]